bitfinex/quotes_ETHUSD_20241223
["timestamp","ask_amount","ask_price","bid_price","bid_amount"]
[1734955144644,0.7539,3341.8,3339.9,0.14243727]
[1734955144850,2.99265,3341.6,3340.3,2.99371]
[1734955145033,2.99265,3341.6,3340.5,0.1125]
[1734955145233,2.50280791,3341.4,3340.6,0.1125]
[1734955146332,2.99305,3341.1,3340.6,0.1125]
[1734955148350,2.99329,3340.8,3340.6,0.1125]
[1734955148510,2.99314,3341.0,3340.6,0.1125]
[1734955149024,0.799,3341.4,3340.0,0.1125]
[1734955149237,2.99373,3340.4,3340.0,0.1125]
[1734955149422,2.99374,3340.3,3340.0,0.1125]
[1734955149619,0.8125,3341.6,3340.0,0.1125]
[1734955149833,2.9935,3340.6,3340.0,0.1125]
[1734955150450,2.99364,3340.5,3340.0,0.1125]
[1734955152454,2.99367,3340.4,3340.0,0.1125]
[1734955152781,2.99368,3340.4,3340.0,0.1125]
[1734955153341,2.99368,3340.4,3340.0,2.2025]
[1734955154483,0.8125,3340.9,3340.0,2.2025]
[1734955154773,2.99348,3340.6,3340.0,2.2025]
[1734955155478,0.8125,3340.9,3340.0,2.2025]
[1734955155651,2.99357,3340.5,3340.0,2.2025]
[1734955166104,2.99368,3340.4,3340.0,2.2025]
[1734955168873,2.99351,3340.6,3340.0,2.2025]
[1734955174219,2.99338,3340.7,3340.0,2.2025]
[1734955174374,2.99355,3340.6,3340.0,2.2025]
[1734955176271,0.4186611,3340.6,3340.0,2.09]
[1734955176477,0.8042,3340.5,3340.0,2.09]
[1734955176698,3.79812,3340.1,3340.0,2.09]
[1734955184223,5.49645791,3340.4,3340.0,2.09]
[1734955184224,2.9939,3340.2,3340.0,2.09]
[1734955186220,2.99392,3340.1,3340.0,2.09]
[1734955191230,2.99372,3340.4,3340.1,0.1125]
[1734955193230,3.75684,3340.9,3340.1,0.1125]
[1734955193393,2.99354,3340.6,3340.1,0.1125]
[1734955195995,5.49594791,3341.0,3340.1,0.1125]
[1734955196190,5.49594791,3341.0,3340.1,0.5799359]
[1734955196391,5.49594791,3341.0,3340.2,0.1125]
[1734955197297,3.12850989,3341.2,3340.2,0.1125]
[1734955197298,2.99293,3341.2,3340.2,0.1125]
[1734955197519,2.50280791,3341.3,3340.2,0.1125]
[1734955197520,2.9934,3340.7,3340.2,0.1125]
[1734955197755,0.8321,3341.0,3340.2,0.1125]
[1734955198448,2.99365,3340.4,3340.2,0.1125]
[1734955198658,2.99372,3340.4,3340.0,2.09]
[1734955199626,0.7692,3340.4,3340.0,2.09]
[1734955199828,2.99377,3340.3,3340.0,2.09]
[1734955200402,2.9936,3340.5,3340.0,2.31025]
[1734955200731,2.9933,3340.8,3340.1,0.14243847]
[1734955200732,2.50280791,3340.8,3340.1,0.14243847]
[1734955200939,2.50280791,3340.8,3340.2,0.1125]
[1734955201530,2.99314,3341.0,3340.2,0.1125]
[1734955202531,2.99296,3341.2,3340.2,0.1125]
[1734955202749,2.99305,3341.1,3340.4,0.1125]
[1734955202906,2.50280791,3341.4,3340.4,0.1125]
[1734955203232,2.50280791,3341.7,3340.5,0.1125]
[1734955203456,2.99301,3341.2,3340.5,0.1125]
[1734955203730,2.99313,3341.0,3340.5,1.3814775]
[1734955203911,2.99313,3341.0,3340.5,0.1125]
[1734955204509,0.7792,3341.6,3340.5,0.1125]
[1734955204510,2.99302,3341.1,3340.5,0.1125]
[1734955206094,0.7792,3341.6,3340.5,0.1125]
[1734955206294,0.7792,3341.6,3340.5,1.3814775]
[1734955206908,2.99292,3341.3,3340.6,0.1125]
[1734955208036,3.90740625,3341.9,3340.6,3.0]
[1734955208360,2.99258,3341.6,3340.7,0.1125]
[1734955208837,2.9924,3341.8,3340.7,0.1125]
[1734955208999,2.50280791,3341.9,3340.9,0.1125]
[1734955209202,2.99241,3341.8,3340.9,0.1125]
[1734955209632,2.99258,3341.6,3340.9,0.1125]
[1734955209833,2.99269,3341.5,3340.9,0.1125]
[1734955210032,3.25700791,3342.2,3341.1,0.1125]
[1734955210257,2.99257,3341.7,3341.1,0.1125]
[1734955211749,2.99231,3341.9,3341.1,0.1125]
[1734955211945,2.99242,3341.8,3341.1,0.1125]
[1734955212868,2.99223,3342.0,3341.1,0.1125]
[1734955213526,0.7919,3342.4,3341.2,0.1125]
[1734955213732,2.99213,3342.1,3341.4,0.1125]
[1734955213920,2.99224,3342.0,3341.4,0.1125]
[1734955214250,2.99236,3341.9,3341.4,0.1125]
[1734955214490,3.59101974,3342.5,3341.0,0.1125]
[1734955214491,0.59919974,3342.5,3341.0,0.1125]
[1734955214751,2.99329,3340.8,3340.7,0.1125]
[1734955214964,2.99314,3341.0,3340.7,0.1125]
[1734955215517,2.99321,3340.9,3340.1,0.1125]
[1734955215711,2.99321,3340.9,3340.1,1.76305751]
[1734955215924,2.99321,3340.9,3340.1,4.76305751]
[1734955216126,0.7919,3341.2,3340.1,4.76305751]
[1734955216358,2.99304,3341.1,3340.1,4.76305751]
[1734955217057,2.99313,3341.0,3340.1,4.76305751]
[1734955217243,2.99313,3341.0,3340.2,5.10121775]
[1734955217441,2.99313,3341.0,3340.2,2.10121775]
[1734955218049,2.99323,3340.9,3340.2,2.10121775]
[1734955218261,0.7919,3341.2,3340.1,0.1125]
[1734955218755,2.99258,3341.6,3340.1,0.1125]
[1734955218756,0.771,3341.4,3340.1,0.02993875]
[1734955218968,0.771,3341.7,3340.3,0.1125]
[1734955219171,0.771,3341.7,3340.3,0.02993276]
[1734955219384,2.99301,3341.2,3340.4,0.1125]
[1734955219539,2.99266,3341.5,3340.4,0.1125]
[1734955219733,2.99301,3341.2,3340.4,0.1125]
[1734955219939,2.99278,3341.4,3340.5,0.1125]
[1734955220822,0.7972,3342.0,3340.6,0.02993187]
[1734955221040,2.99257,3341.7,3340.6,0.1125]
[1734955222080,2.9926,3341.6,3340.6,0.1125]
[1734955222280,2.9926,3341.6,3340.8,0.1125]
[1734955222435,0.7972,3342.0,3340.8,0.1125]
[1734955222643,2.9923,3341.9,3340.8,0.1125]
[1734955222837,0.7972,3342.0,3340.8,0.1125]
[1734955223038,2.99249,3341.7,3340.8,0.1125]
[1734955223240,2.99249,3341.7,3340.9,0.6934997]
[1734955223481,2.99249,3341.7,3341.0,0.1125]
[1734955223882,2.99232,3341.9,3341.0,0.1125]
[1734955224174,2.99242,3341.8,3341.0,0.1125]
[1734955225049,2.99249,3341.7,3341.0,0.1125]
[1734955225254,2.99258,3341.6,3341.0,0.1125]
[1734955227779,0.7629,3342.3,3341.0,0.1125]
[1734955228084,0.43637241,3342.2,3340.8,0.1125]
[1734955228279,2.9923,3342.0,3341.0,0.55]
[1734955228500,2.9923,3342.0,3341.1,0.1125]
[1734955230103,0.7629,3342.3,3341.1,0.1125]
[1734955230405,2.99237,3341.9,3341.1,0.1125]
[1734955232009,2.99215,3342.1,3341.2,0.1125]
[1734955232169,2.99215,3342.1,3341.3,0.829062]
[1734955232378,2.99215,3342.1,3341.4,0.1125]
[1734955232809,1.41555078,3342.6,3341.4,0.1125]
[1734955232986,2.99205,3342.2,3341.4,0.1125]
[1734955234079,1.41555078,3342.6,3341.4,0.1125]
[1734955234374,1.41555078,3342.6,3341.6,0.1125]
[1734955234375,2.99248,3341.7,3341.6,0.1125]
[1734955234577,2.99267,3341.5,3341.1,0.1125]
[1734955234767,2.9923,3341.9,3341.1,0.1125]
[1734955234966,2.99247,3341.8,3341.1,0.1125]
[1734955235501,2.99225,3342.0,3341.1,0.1125]
[1734955235693,2.99231,3341.9,3341.3,0.1125]
[1734955236602,2.99236,3341.9,3341.3,0.1125]
[1734955236806,2.99261,3341.6,3341.3,0.1125]
[1734955237171,2.99243,3341.8,3341.3,0.1125]
[1734955238220,2.99259,3341.6,3341.3,0.1125]
[1734955239206,2.9924,3341.8,3341.3,0.1125]
[1734955239666,0.37994,3341.8,3340.7,0.1125]
[1734955239870,0.807,3342.1,3340.7,0.1125]
[1734955239871,2.99286,3341.3,3340.7,0.1125]
[1734955241084,2.99267,3341.5,3340.7,0.1125]
[1734955241285,2.99287,3341.3,3340.7,0.1125]
[1734955241520,2.99297,3341.2,3340.7,0.1125]
[1734955242377,2.99279,3341.4,3340.7,0.1125]
[1734955242577,2.99285,3341.3,3340.7,0.34226]
[1734955243509,2.9927,3341.5,3340.7,0.34226]
[1734955243671,2.99277,3341.4,3340.7,0.34226]
[1734955244415,0.809,3341.9,3340.8,0.1125]
[1734955244711,2.99247,3341.8,3341.0,0.1125]
[1734955244887,0.809,3341.9,3341.0,0.1125]
[1734955244888,2.99264,3341.6,3341.0,0.1125]
[1734955246086,2.99248,3341.8,3341.0,0.1125]
[1734955246288,2.99213,3342.1,3341.0,0.1125]
[1734955246289,2.99254,3341.7,3341.0,0.1125]
[1734955247075,2.99238,3341.9,3341.0,0.0299286]
[1734955247305,2.99215,3342.1,3341.2,0.1125]
[1734955247479,5.49480791,3342.3,3341.3,3.10529]
[1734955247681,1.35175078,3342.6,3341.3,0.1125]
[1734955247682,2.99204,3342.2,3341.3,0.1125]
[1734955248104,2.50280791,3342.4,3341.3,0.1125]
[1734955248276,2.9923,3342.0,3341.3,0.1125]
[1734955248476,2.9923,3342.0,3341.3,0.47924255]
[1734955249094,2.9923,3342.0,3341.3,0.36674255]
[1734955249284,0.8108,3342.3,3341.4,0.1125]
[1734955249617,2.99231,3341.9,3341.4,0.1125]
[1734955250181,0.8108,3342.3,3341.4,0.1125]
[1734955250382,2.9922,3342.1,3341.4,0.1125]
[1734955250583,2.99204,3342.2,3341.4,0.1125]
[1734955250781,2.99221,3342.1,3341.4,0.1125]
[1734955251282,0.8108,3342.3,3341.4,0.1125]
[1734955251283,2.99226,3342.0,3341.4,0.1125]
[1734955255622,2.99239,3341.9,3341.4,0.1125]
[1734955255824,0.598446,3341.9,3341.4,0.1125]
[1734955256009,2.99256,3341.7,3341.4,0.1125]
[1734955256208,2.99213,3342.1,3341.4,0.1125]
[1734955256382,2.99247,3341.8,3341.4,0.1125]
[1734955256578,2.99253,3341.7,3341.4,0.1125]
[1734955257602,3.8028,3342.3,3341.4,0.1125]
[1734955257885,2.99232,3341.9,3341.4,0.1125]
[1734955258792,2.9924,3341.8,3341.4,0.1125]
[1734955259322,2.99224,3342.0,3341.4,0.1125]
[1734955259923,2.99213,3342.1,3341.4,0.1125]
[1734955260215,2.99213,3342.1,3341.0,3.0]
[1734955260425,2.99266,3341.5,3341.1,0.1125]
[1734955261301,2.99248,3341.7,3341.1,0.1125]
[1734955261479,2.99261,3341.6,3341.1,0.1125]
[1734955263328,1.20735418,3342.0,3341.1,0.1125]
[1734955263541,2.9926,3341.6,3341.1,0.1125]
[1734955263686,0.8138,3342.0,3341.1,0.76780922]
[1734955263890,2.99242,3341.8,3341.1,0.76780922]
[1734955264822,2.99259,3341.6,3341.1,0.76780922]
[1734955265436,0.8138,3342.0,3341.1,0.76780922]
[1734955265735,2.9923,3341.9,3341.1,0.1125]
[1734955265943,2.99263,3341.6,3341.1,0.1125]
[1734955266337,0.8138,3342.0,3340.8,1.25549227]
[1734955266338,2.9932,3340.9,3340.8,1.25549227]
[1734955266530,3.7962,3340.9,3340.8,1.25549227]
[1734955267041,6.7962,3340.9,3340.8,1.25549227]
[1734955267217,7.775121,3340.9,3340.8,1.25549227]
[1734955267621,2.99316,3341.0,3340.2,0.1125]
[1734955267822,2.99311,3341.0,3340.2,0.1125]
[1734955268562,2.50280791,3341.1,3340.2,0.1125]
[1734955268753,2.99321,3340.9,3340.2,0.1125]
[1734955270941,2.99321,3340.9,3340.0,5.09]
[1734955270942,0.7568,3340.8,3340.0,2.09]
[1734955271266,2.99358,3340.5,3340.0,2.09]
[1734955271429,0.7568,3340.8,3340.0,2.09]
[1734955271633,2.99364,3340.5,3340.0,2.09]
[1734955272172,2.99365,3340.4,3340.0,2.09]
[1734955273229,5.49587791,3341.1,3340.0,2.09]
[1734955273450,0.7796,3341.0,3340.0,2.09]
[1734955273965,2.99339,3340.7,3340.0,2.09]
[1734955274173,2.99322,3340.9,3340.2,0.1125]
[1734955277041,2.99322,3340.9,3340.1,0.22025]
[1734955277042,2.99287,3341.3,3340.3,0.1125]
[1734955277236,2.99287,3341.3,3340.4,0.1125]
[1734955277439,2.50280791,3341.7,3340.5,2.18509996]
[1734955277666,2.50280791,3341.7,3340.7,0.1125]
[1734955277877,2.50280791,3341.7,3340.6,0.25143352]
[1734955277878,2.50280791,3341.7,3340.8,0.1125]
[1734955278376,2.99241,3341.8,3340.9,0.1125]
[1734955278598,0.61116256,3342.0,3341.0,0.1125]
[1734955278885,2.99233,3341.9,3341.2,0.1125]
[1734955280270,2.99243,3341.8,3341.2,0.1125]
[1734955280992,0.61116256,3342.0,3341.2,0.1125]
[1734955281298,2.99248,3341.8,3341.2,0.1125]
[1734955281456,0.61116256,3342.0,3341.2,0.1125]
[1734955281657,2.9925,3341.7,3341.2,0.1125]
[1734955281852,1.04869782,3342.0,3341.2,0.1125]
[1734955282097,2.99274,3341.5,3340.4,7.24912227]
[1734955282308,2.99274,3341.5,3340.5,0.1125]
[1734955282992,2.99284,3341.3,3340.5,0.1125]
[1734955283157,2.99298,3341.2,3340.5,0.1125]
[1734955283354,2.99302,3341.1,3340.5,0.1125]
[1734955283555,0.678748,3341.3,3340.5,0.1125]
[1734955283865,2.99328,3340.9,3340.5,0.1125]
[1734955285799,2.99305,3341.1,3340.5,0.1125]
[1734955286007,2.9932,3340.9,3340.5,0.1125]
[1734955286616,2.99284,3341.3,3340.5,0.1125]
[1734955288300,5.99249,3341.7,3340.1,0.1125]
[1734955288301,0.7721,3341.2,3340.1,0.1125]
[1734955288465,2.99318,3341.0,3340.1,0.1125]
[1734955288661,3.76506,3341.2,3340.2,0.1125]
[1734955289000,2.99302,3341.1,3340.2,0.1125]
[1734955289797,2.99316,3341.0,3340.2,0.1125]
[1734955291207,2.9935,3340.6,3340.2,0.1125]
[1734955291396,2.99357,3340.5,3340.2,0.1125]
[1734955292509,2.99311,3341.0,3340.2,0.1125]
[1734955292713,2.9935,3340.6,3340.2,0.1125]
[1734955293676,0.376521,3340.9,3340.0,2.09]
[1734955293677,0.7922,3340.8,3340.0,2.09]
[1734955293874,2.99392,3340.1,3340.0,2.09]
[1734955295526,3.81642,3340.1,3339.1,0.1125]
[1734955295674,2.99401,3340.0,3338.9,1.25549227]
[1734955296000,0.8225,3339.5,3338.9,1.25549227]
[1734955296201,3.81696,3339.5,3338.9,1.25549227]
[1734955296407,2.99479,3339.2,3338.8,0.1125]
[1734955296783,2.99482,3339.1,3338.8,0.1125]
[1734955297815,2.99451,3339.5,3338.8,0.1125]
[1734955297973,2.99456,3339.4,3338.8,0.1125]
[1734955298176,2.9944,3339.6,3338.8,0.1125]
[1734955298913,2.99389,3340.2,3338.8,0.1125]
[1734955298914,0.8265,3340.2,3338.8,0.1125]
[1734955299082,2.99408,3340.0,3338.9,0.1125]
[1734955299309,0.8265,3340.2,3338.9,2.18509996]
[1734955299617,0.7567,3340.5,3339.3,0.1125]
[1734955299904,0.7567,3340.5,3339.3,3.14244338]
[1734955300207,5.49624791,3340.7,3339.4,0.1125]
[1734955300368,2.99364,3340.5,3339.6,0.1125]
[1734955301908,0.7567,3340.8,3339.6,0.1125]
[1734955302543,2.99384,3340.2,3339.6,0.1125]
[1734955303105,2.99351,3340.6,3339.6,0.1125]
[1734955303901,2.99364,3340.5,3339.6,0.1125]
[1734955304246,2.99364,3340.5,3339.6,0.423201]
[1734955304543,0.7567,3340.8,3339.6,0.423201]
[1734955304757,0.7567,3340.8,3339.6,0.1125]
[1734955305105,2.99338,3340.7,3339.6,0.1125]
[1734955305306,2.99388,3340.2,3339.6,0.1125]
[1734955305497,0.7567,3340.8,3339.6,0.1125]
[1734955305703,2.99423,3339.8,3339.6,0.1125]
[1734955306244,2.99423,3339.8,3338.8,3.0]
[1734955306245,2.99423,3339.8,3338.9,0.1125]
[1734955307000,0.7569,3340.6,3339.0,0.1125]
[1734955307204,0.7569,3340.6,3339.3,0.1125]
[1734955307205,2.99382,3340.3,3339.3,0.1125]
[1734955307404,2.99382,3340.3,3339.3,2.99463]
[1734955307627,2.99382,3340.3,3339.4,0.411963]
[1734955308342,0.7283481,3340.7,3339.5,0.1125]
[1734955308502,1.162121,3340.9,3339.4,0.32940417]
[1734955308705,1.162121,3340.9,3339.5,0.1125]
[1734955309528,2.99357,3340.5,3339.5,0.1125]
[1734955309730,2.99357,3340.5,3339.6,0.6406473]
[1734955310517,2.99357,3340.5,3339.7,0.1125]
[1734955320685,2.99333,3340.8,3339.7,0.1125]
[1734955320967,2.99438,3339.6,3339.0,1.36799227]
[1734955321268,0.8139,3340.0,3339.0,1.36799227]
[1734955321269,2.99459,3339.4,3339.0,1.36799227]
[1734955321482,2.99422,3339.8,3339.0,1.36799227]
[1734955321483,0.299459,3339.3,3339.0,1.36799227]
[1734955321785,2.99465,3339.3,3339.0,1.36799227]
[1734955321986,2.99465,3339.3,3339.0,0.1125]
[1734955323271,2.99474,3339.2,3339.0,0.1125]
[1734955323482,3.80791,3340.0,3338.3,0.1125]
[1734955323483,0.8139,3339.4,3338.3,0.1125]
[1734955323699,0.8139,3338.8,3338.1,1.25549227]
[1734955323878,2.99517,3338.7,3338.1,1.25549227]
[1734955324147,0.8139,3338.8,3338.1,1.25549227]
[1734955324148,2.99556,3338.3,3338.1,1.25549227]
[1734955324352,2.99556,3338.3,3337.9,0.1125]
[1734955324575,0.8139,3338.8,3337.9,0.1125]
[1734955324892,2.99546,3338.4,3337.9,0.1125]
[1734955325410,0.380897,3338.7,3337.9,0.1125]
[1734955325609,2.99563,3338.2,3337.9,0.1125]
[1734955325908,3.80903,3338.8,3337.3,0.1125]
[1734955325909,2.99573,3338.1,3337.3,0.1125]
[1734955328740,0.8139,3338.8,3337.3,0.1125]
[1734955329016,2.99591,3337.9,3337.3,0.1125]
[1734955329506,2.99574,3338.1,3337.3,0.1125]
[1734955330205,2.99548,3338.4,3337.3,0.1125]
[1734955330402,2.99553,3338.3,3337.3,0.1125]
[1734955330580,2.9959,3337.9,3337.3,0.1125]
[1734955330784,2.99573,3338.1,3337.3,0.1125]
[1734955330971,0.299548,3338.4,3337.3,0.1125]
[1734955331166,2.99581,3338.0,3337.3,0.1125]
[1734955334477,2.9956,3338.3,3337.3,0.723416]
[1734955335308,0.8139,3338.8,3337.5,0.1125]
[1734955335611,2.99536,3338.5,3337.7,0.1125]
[1734955335978,0.8139,3338.8,3337.7,0.1125]
[1734955336178,2.99517,3338.7,3337.7,0.1125]
[1734955336382,2.99561,3338.3,3337.7,0.1125]
[1734955337402,2.99561,3338.3,3337.3,0.610916]
[1734955337603,3.675753,3338.6,3337.6,0.1125]
[1734955337905,2.99552,3338.4,3337.6,0.1125]
[1734955339411,2.99553,3338.3,3337.6,0.1125]
[1734955340474,2.99562,3338.2,3337.6,0.1125]
[1734955340675,3.295182,3338.2,3337.6,0.1125]
[1734955341571,2.9959,3337.9,3337.6,0.1125]
[1734955341973,0.8331,3338.1,3336.8,0.1125]
[1734955342232,2.99648,3337.3,3336.8,0.1125]
[1734955342974,2.99635,3337.4,3336.8,0.1125]
[1734955343619,2.99602,3337.8,3336.8,0.1125]
[1734955343771,2.99644,3337.3,3336.8,0.1125]
[1734955344476,0.7707,3337.6,3336.3,0.1125]
[1734955344703,2.99673,3337.0,3336.3,0.1125]
[1734955345099,2.99634,3337.5,3336.4,2.99723]
[1734955345418,2.99548,3338.4,3336.2,0.31220547]
[1734955345419,0.7707,3337.9,3336.6,0.1125]
[1734955345637,2.99563,3338.2,3337.1,2.99653]
[1734955345840,0.7707,3338.5,3337.1,2.99653]
[1734955345841,0.7707,3338.5,3337.3,0.1125]
[1734955346120,3.76609,3338.5,3337.4,5.18142996]
[1734955346412,2.99516,3338.8,3337.6,3.10866]
[1734955346615,2.50280791,3339.1,3338.2,3.1081]
[1734955346792,2.50280791,3339.1,3338.4,2.99541]
[1734955346987,7.51238187,3339.5,3338.4,0.1125]
[1734955346988,0.7637,3339.5,3338.4,0.1125]
[1734955347204,2.99464,3339.3,3338.4,0.1125]
[1734955347399,2.99464,3339.3,3338.4,0.941819]
[1734955347983,2.99473,3339.2,3338.4,0.941819]
[1734955348177,2.99483,3339.1,3338.4,0.941819]
[1734955348423,0.7637,3339.5,3338.4,0.1125]
[1734955348586,2.99472,3339.3,3338.4,0.1125]
[1734955351131,2.99448,3339.5,3338.4,0.02995089]
[1734955351325,2.99448,3339.5,3338.5,0.1125]
[1734955351689,3.7801,3340.1,3338.7,2.99516]
[1734955351925,2.99427,3339.8,3338.8,3.1125]
[1734955352695,5.32,3340.7,3338.7,3.81618106]
[1734955352696,2.9938,3340.3,3339.2,3.1125]
[1734955352907,2.9938,3340.3,3339.2,6.10722]
[1734955353108,3.3755,3340.3,3339.2,6.936452]
[1734955354635,2.99384,3340.2,3339.2,6.936452]
[1734955355231,2.99384,3340.2,3339.2,0.941732]
[1734955356027,2.99419,3339.8,3339.2,0.1125]
[1734955356532,2.99446,3339.5,3338.5,0.1125]
[1734955357821,2.99446,3339.5,3338.5,3.1125]
[1734955359130,2.99429,3339.7,3338.5,3.10777]
[1734955359332,3.74841,3339.9,3338.7,2.18509996]
[1734955359555,3.369051,3339.8,3338.8,3.10757]
[1734955360350,3.369051,3339.8,3338.8,0.1125]
[1734955361257,2.99432,3339.7,3338.8,0.1125]
[1734955361430,0.374841,3339.8,3338.8,0.1125]
[1734955361625,0.7543,3339.9,3339.0,0.1125]
[1734955361626,3.74842,3339.9,3339.0,0.1125]
[1734955361943,0.7543,3339.9,3339.0,0.1125]
[1734955362348,2.99436,3339.7,3339.0,0.1125]
[1734955362655,2.99458,3339.4,3339.0,0.1125]
[1734955363450,0.7543,3339.9,3339.0,0.1125]
[1734955363632,2.99419,3339.8,3339.0,0.1125]
[1734955363850,2.99474,3339.2,3338.5,0.1125]
[1734955366179,0.374849,3339.7,3338.5,0.1125]
[1734955366377,2.99485,3339.1,3338.5,0.1125]
[1734955367472,2.99459,3339.4,3338.5,3.1125]
[1734955368056,2.99459,3339.4,3338.5,0.1125]
[1734955369786,0.7872,3340.0,3338.6,0.1125]
[1734955369964,0.7872,3340.0,3338.7,0.02994774]
[1734955370156,2.99433,3339.7,3338.8,0.1125]
[1734955370555,2.9945,3339.5,3338.8,0.1125]
[1734955370757,2.99457,3339.4,3338.8,0.1125]
[1734955371069,2.99464,3339.3,3338.8,0.1125]
[1734955373284,0.7872,3340.0,3338.8,0.1125]
[1734955373485,2.99426,3339.8,3338.8,2.99505]
[1734955373785,2.99433,3339.7,3338.9,0.1125]
[1734955375685,0.7872,3340.0,3338.9,0.1125]
[1734955375686,0.7625,3340.5,3338.9,0.1125]
[1734955375896,2.99377,3340.3,3339.2,0.1125]
[1734955376485,2.50280791,3340.8,3339.5,0.1125]
[1734955376660,3.55659178,3340.7,3339.7,0.1125]
[1734955377189,0.56313178,3340.7,3339.8,0.1125]
[1734955377383,2.99377,3340.3,3339.8,0.1125]
[1734955378391,0.56313178,3340.7,3339.8,0.1125]
[1734955378596,2.99393,3340.1,3339.8,0.1125]
[1734955378780,2.99376,3340.3,3339.8,0.1125]
[1734955379003,2.99352,3340.6,3339.8,0.1125]
[1734955379598,0.805,3341.0,3339.8,0.1125]
[1734955379599,2.99332,3340.8,3339.8,0.1125]
[1734955379805,0.679141,3340.8,3339.9,0.1125]
[1734955379987,0.60550986,3341.3,3339.9,0.14243859]
[1734955379988,0.7886,3341.3,3339.9,0.14243859]
[1734955380198,2.99311,3341.0,3340.2,0.1125]
[1734955380778,2.99341,3340.7,3340.2,0.1125]
[1734955380982,3.78146,3341.3,3340.2,0.1125]
[1734955381181,2.99358,3340.5,3340.2,0.1125]
[1734955381513,1.35343377,3341.6,3340.1,0.1125]
[1734955381818,0.68562417,3341.5,3340.4,0.1125]
[1734955382007,0.7604,3341.6,3340.4,0.1125]
[1734955382345,2.99277,3341.4,3340.4,0.1125]
[1734955382833,0.60053721,3341.9,3340.7,0.1125]
[1734955382991,2.99223,3342.0,3341.2,0.1125]
[1734955383587,2.99229,3342.0,3341.2,0.1125]
[1734955383780,3.291519,3342.0,3341.2,0.1125]
[1734955384095,0.299229,3342.0,3341.2,0.1125]
[1734955384299,2.99213,3342.1,3341.2,0.1125]
[1734955385994,2.99224,3342.0,3341.2,0.1125]
[1734955388520,2.99238,3341.9,3341.2,0.1125]
[1734955388720,3.79022,3342.4,3341.2,0.1125]
[1734955388721,2.99261,3341.6,3341.2,0.1125]
[1734955388926,2.99269,3341.5,3341.2,0.1125]
[1734955389287,2.99252,3341.7,3341.2,0.1125]
[1734955391048,2.99231,3341.9,3341.2,0.1125]
[1734955391884,2.99242,3341.8,3341.2,0.1125]
[1734955392829,0.8293,3342.3,3341.2,0.1125]
[1734955393195,2.99231,3341.9,3341.2,0.1125]
[1734955393811,3.8213,3342.3,3341.2,0.1125]
[1734955394021,2.99256,3341.7,3341.2,0.1125]
[1734955394733,2.99289,3341.3,3340.7,0.1125]
[1734955396631,2.9927,3341.5,3340.7,0.1125]
[1734955397399,0.8263,3341.8,3340.7,0.1125]
[1734955397400,2.99276,3341.4,3340.7,0.1125]
[1734955397724,2.99286,3341.3,3340.7,0.1125]
[1734955400137,2.99269,3341.5,3340.7,0.1125]
[1734955400331,2.99269,3341.5,3340.7,0.34226]
[1734955401126,0.8263,3341.8,3340.7,0.34226]
[1734955401346,0.8263,3341.8,3340.7,0.1125]
[1734955401562,2.99295,3341.2,3340.7,0.1125]
[1734955401905,0.8263,3341.8,3340.7,0.1125]
[1734955401906,2.99276,3341.4,3340.7,0.1125]
[1734955403506,2.99255,3341.7,3340.7,0.1125]
[1734955403713,0.7959,3341.5,3340.5,0.1125]
[1734955404074,2.99313,3341.0,3340.5,0.1125]
[1734955405921,0.378845,3341.4,3340.5,0.1125]
[1734955406127,2.99303,3341.1,3340.5,0.1125]
[1734955408253,2.99287,3341.3,3340.5,0.1125]
[1734955409176,2.99266,3341.6,3340.6,0.1125]
[1734955409334,2.99266,3341.6,3340.7,0.641616]
[1734955410136,0.8151,3342.1,3340.8,0.14243182]
[1734955410350,2.99231,3341.9,3341.0,0.1125]
[1734955410720,2.99249,3341.7,3341.0,0.1125]
[1734955411529,0.8151,3342.1,3341.0,0.1125]
[1734955411732,0.8167,3341.8,3340.8,0.1125]
[1734955411977,0.380905,3341.7,3340.8,0.1125]
[1734955412741,2.99295,3341.2,3340.8,0.1125]
[1734955414010,0.380905,3341.7,3340.8,0.1125]
[1734955414011,2.99279,3341.4,3340.8,0.1125]
[1734955414497,0.380905,3341.7,3340.8,0.1125]
[1734955414796,2.99285,3341.3,3340.8,0.1125]
[1734955416482,2.9927,3341.5,3340.8,0.1125]
[1734955419303,3.4117305,3341.5,3340.8,0.1125]
[1734955419598,2.9927,3341.5,3340.8,0.1125]
[1734955421213,2.99257,3341.6,3340.8,0.1125]
[1734955421389,2.99347,3340.7,3340.3,0.1125]
[1734955422115,2.99348,3340.6,3340.3,0.1125]
[1734955422409,2.99345,3340.7,3340.0,0.1125]
[1734955422699,3.369285,3340.6,3340.0,0.1125]
[1734955422869,0.375785,3340.6,3340.0,0.1125]
[1734955423373,2.9937,3340.4,3339.7,1.36799227]
[1734955423571,0.7644,3340.3,3339.7,0.1125]
[1734955424797,1.182285,3340.6,3339.7,2.29759996]
[1734955425113,0.8065,3340.9,3340.0,0.1125]
[1734955426024,3.79972,3340.9,3340.0,0.1125]
[1734955426700,0.8065,3340.9,3340.1,2.99392]
[1734955426906,6.32085791,3341.2,3340.1,2.99392]
[1734955427092,0.94493678,3341.1,3340.2,2.99381]
[1734955427491,6.32085791,3341.2,3340.3,0.1125]
[1734955427492,3.32790791,3341.2,3340.3,0.1125]
[1734955427690,3.81783,3341.5,3340.4,2.18509996]
[1734955427892,0.8251,3341.5,3340.5,0.1125]
[1734955428092,2.50280791,3341.6,3340.6,2.99345]
[1734955428471,0.380905,3341.7,3340.7,2.99336]
[1734955429008,3.380905,3341.7,3340.7,2.99336]